bitfinex/quotes_ETHUSD_20250731
["timestamp","ask_amount","ask_price","bid_price","bid_amount"]
[1753953885736,0.25117418,3866.7,3866.6,0.9034]
[1753953886156,0.25122185,3866.7,3866.6,0.9034]
[1753953886353,0.01,3866.7,3866.6,0.9034]
[1753953887531,0.25122185,3866.7,3866.6,0.9034]
[1753953889268,0.01,3866.7,3866.6,0.9034]
[1753953889471,0.25122185,3866.7,3866.6,0.9034]
[1753953889668,0.01,3866.7,3866.6,0.9034]
[1753953889869,0.25135957,3866.7,3866.6,0.9034]
[1753953890067,0.25135957,3866.7,3866.6,0.4533]
[1753953890286,1.70205984,3866.7,3866.6,0.001]
[1753953892289,1.70207706,3866.7,3866.6,0.001]
[1753953893082,1.70207706,3866.7,3866.6,0.4533]
[1753953893276,1.07847679,3866.7,3866.6,0.4533]
[1753953893467,1.07847679,3866.7,3866.6,0.9034]
[1753953895661,0.25137679,3866.7,3866.6,0.9034]
[1753953896575,0.01,3866.7,3866.6,0.9034]
[1753953897260,0.25137679,3866.7,3866.6,0.9034]
[1753953897978,0.01,3866.7,3866.6,0.9034]
[1753953898178,0.25142604,3866.7,3866.6,0.9034]
[1753953898487,0.01,3866.7,3866.6,0.9034]
[1753953898647,0.25142604,3866.7,3866.6,0.9034]
[1753953898848,0.01,3866.7,3866.6,0.9034]
[1753953899148,0.01,3866.7,3866.6,5.67163449]
[1753953903451,0.01,3866.7,3866.6,8.67163449]
[1753953903949,0.01,3866.7,3866.6,5.12163449]
[1753953905498,0.01,3866.7,3866.6,5.67163449]
[1753953905676,0.01,3866.7,3866.6,5.80123449]
[1753953910094,0.01,3866.7,3866.6,8.80123449]
[1753953910752,0.012,3866.7,3866.6,8.80123449]
[1753953912994,0.012,3866.7,3866.6,12.04993449]
[1753953913166,0.002,3866.9,3866.8,6.89851772]
[1753953913489,0.002,3866.9,3866.8,13.48402545]
[1753953913668,0.002,3866.9,3866.8,13.61362545]
[1753953913868,0.002,3866.9,3866.8,14.51342545]
[1753953915097,0.03,3867.0,3866.9,6.92585084]
[1753953915298,0.03,3867.0,3866.9,7.82565084]
[1753953915502,0.03,3867.0,3866.9,9.88150192]
[1753953919657,0.03,3867.0,3866.9,8.43170192]
[1753953919866,0.03,3867.0,3866.9,2.58605084]
[1753953920863,0.03,3867.0,3866.9,3.13605084]
[1753953922708,0.03,3867.0,3866.9,7.03585084]
[1753953922890,0.03,3867.0,3866.9,7.91935084]
[1753953929929,0.03,3867.0,3866.9,11.16805084]
[1753953930128,1e-08,3867.0,3866.9,13.11044825]
[1753953930432,1e-08,3867.0,3866.9,17.93487076]
[1753953933415,0.00200001,3867.0,3866.9,17.93487076]
[1753953934343,0.00200001,3867.0,3866.9,16.28117076]
[1753953934706,0.00200001,3867.0,3866.9,16.74997076]
[1753953935096,0.00200001,3867.0,3866.9,15.73117076]
[1753953935294,0.00200001,3867.0,3866.9,12.95127076]
[1753953935492,0.00200001,3867.0,3866.9,13.50127076]
[1753953935744,0.00200001,3867.0,3866.9,13.96487076]
[1753953937710,0.00200001,3867.0,3866.9,14.72377076]
[1753953941368,0.00200001,3867.0,3866.9,17.97247076]
[1753953957309,0.00200001,3867.0,3866.9,17.97347076]
[1753953958504,0.00200001,3867.0,3866.9,11.32814825]
[1753953958687,0.00200001,3867.0,3866.9,9.38575084]
[1753953958887,0.00200001,3867.0,3866.9,5.58705084]
[1753953959083,0.00200001,3867.0,3866.9,6.13705084]
[1753953960312,0.00200001,3867.0,3866.9,5.58705084]
[1753953960512,0.80940001,3867.0,3866.9,2.58705084]
[1753953963928,0.80940001,3867.0,3866.9,3.62885084]
[1753953963929,0.00200001,3867.0,3866.9,3.62885084]
[1753953964735,0.00200001,3867.0,3866.9,3.13705084]
[1753953965449,0.00200001,3867.0,3866.9,3.62885084]
[1753953965947,0.00200001,3867.0,3866.9,4.06555084]
[1753953968455,0.00200001,3867.0,3866.9,4.19515084]
[1753953969254,0.00200001,3867.0,3866.9,3.26665084]
[1753953970349,0.00200001,3867.0,3866.9,3.75845084]
[1753953970568,0.00200001,3867.0,3866.9,5.35582635]
[1753953972166,0.00200001,3867.0,3866.9,8.35582635]
[1753953973267,1e-08,3867.0,3866.9,9.13022635]
[1753953977775,1e-08,3867.0,3866.9,7.36912635]
[1753953977988,1e-08,3867.0,3866.9,6.75845084]
[1753953978209,1e-08,3867.0,3866.9,2.71665084]
[1753953978812,1e-08,3867.0,3866.9,3.26665084]
[1753953981819,0.83170001,3867.0,3866.9,3.26665084]
[1753953982695,0.83170001,3867.0,3866.9,2.71665084]
[1753953984496,0.83170001,3867.0,3866.9,3.20845084]
[1753953984665,1e-08,3867.0,3866.9,4.19515084]
[1753953986082,1e-08,3867.0,3866.9,3.75845084]
[1753953988207,1e-08,3867.0,3866.9,4.19515084]
[1753953991929,1e-08,3867.0,3866.9,3.75845084]
[1753953992901,1e-08,3867.0,3866.9,4.19515084]
[1753954000040,1e-08,3867.0,3866.9,13.37551349]
[1753954000255,1e-08,3867.0,3866.9,13.50511349]
[1753954000528,1e-08,3867.0,3866.9,16.75381349]
[1753954005606,1e-08,3867.0,3866.9,8.96535084]
[1753954005811,1e-08,3867.0,3866.9,5.96535084]
[1753954006357,1e-08,3867.0,3866.9,2.71665084]
[1753954013810,1e-08,3867.0,3866.9,4.16685084]
[1753954014365,1e-08,3867.0,3866.9,4.95215084]
[1753954014603,1e-08,3867.0,3866.9,6.74713384]
[1753954017003,1e-08,3867.0,3866.9,9.74713384]
[1753954024011,1e-08,3867.0,3866.9,12.99583384]
[1753954029819,1e-08,3867.3,3867.2,10.96027273]
[1753954030042,1e-08,3867.3,3867.2,13.00141109]
[1753954030184,1e-08,3867.3,3867.2,13.90511109]
[1753954030385,1e-08,3867.3,3867.2,14.03471109]
[1753954031848,1e-08,3867.3,3867.2,14.78641109]
[1753954032939,1e-08,3867.3,3867.2,18.03511109]
[1753954036063,0.7791,3868.4,3867.5,5.58564964]
[1753954036256,0.7791,3868.4,3867.5,8.1715333]
[1753954036557,0.7791,3868.4,3867.5,9.7548333]
[1753954036863,0.7791,3868.4,3867.5,14.57925581]
[1753954038852,0.7791,3868.4,3867.5,17.82795581]
[1753954045470,0.002,3868.0,3867.5,17.82795581]
[1753954050406,0.002,3868.0,3867.5,13.67555581]
[1753954050565,0.8176,3867.6,3867.5,2.58564964]
[1753954050764,0.8176,3867.6,3867.2,2.58578851]
[1753954050993,0.8176,3867.6,3867.0,2.58593435]
[1753954051197,0.8176,3867.6,3866.9,2.58702865]
[1753954051559,0.58177968,3867.5,3866.9,0.001]
[1753954051764,0.8292,3867.4,3866.9,0.001]
[1753954052697,0.8292,3867.4,3867.1,2.58590635]
[1753954053983,0.8292,3867.4,3866.9,0.001]
[1753954054184,0.8292,3867.4,3867.3,2.58578336]
[1753954054593,0.8292,3867.4,3867.2,2.58583031]
[1753954054802,0.8292,3867.4,3867.3,2.58578336]
[1753954056122,0.8292,3867.4,3867.2,2.58582478]
[1753954057219,0.8292,3867.4,3867.3,2.58578336]
[1753954057395,0.8292,3867.4,3867.0,2.5859187]
[1753954057800,0.8292,3867.4,3867.1,2.5859006]
[1753954059117,0.8292,3867.4,3866.9,2.58704063]
[1753954059118,0.8292,3867.4,3867.2,2.58584302]
[1753954060426,0.8292,3867.4,3867.2,2.58582764]
[1753954060724,0.8292,3867.4,3867.3,0.1296]
[1753954061319,0.8292,3867.4,3867.3,2.71538336]
[1753954061912,0.8292,3867.4,3867.3,0.1296]
[1753954062421,0.8292,3867.4,3867.3,2.71538336]
[1753954066533,0.8292,3867.4,3867.3,2.71638336]
[1753954067235,0.8292,3867.4,3867.3,3.21608336]
[1753954070933,0.8292,3867.4,3867.3,2.71638336]
[1753954071113,0.8292,3867.4,3867.3,3.66578336]
[1753954072035,0.002,3867.6,3867.5,2.58564964]
[1753954072437,0.002,3867.6,3867.5,3.53504964]
[1753954072935,0.002,3867.6,3867.5,3.66464964]
[1753954075913,0.002,3867.6,3867.5,1.079]
[1753954076135,0.002,3867.6,3867.5,3.66464964]
[1753954080626,0.002,3867.6,3867.5,2.71524964]
[1753954081343,0.002,3867.6,3867.5,3.66464964]
[1753954082049,0.002,3867.6,3867.5,4.83979219]
[1753954084742,0.002,3867.6,3867.5,7.83979219]
[1753954085143,0.002,3867.6,3867.5,7.71019219]
[1753954085344,0.002,3867.6,3867.5,7.83979219]
[1753954088059,0.002,3867.6,3867.5,12.6642147]
[1753954090053,0.002,3867.6,3867.5,13.4720147]
[1753954094362,0.002,3867.6,3867.5,6.79129219]
[1753954094658,0.002,3867.6,3867.5,7.34129219]
[1753954094867,0.002,3867.6,3867.5,6.89039219]
[1753954095162,0.002,3867.6,3867.5,6.16614964]
[1753954095323,0.002,3867.6,3867.5,7.15534964]
[1753954095663,0.002,3867.6,3867.5,6.60534964]
[1753954096060,0.002,3867.6,3867.5,7.15534964]
[1753954098663,0.002,3867.6,3867.5,11.06534964]
[1753954100335,0.002,3867.6,3867.5,12.43056219]
[1753954104568,0.002,3867.6,3867.5,13.23096219]
[1753954105073,0.002,3867.6,3867.5,12.43056219]
[1753954105951,0.002,3867.6,3867.5,10.17824964]
[1753954106159,0.002,3867.6,3867.5,6.71614964]
[1753954106337,0.002,3867.6,3867.5,10.62914964]
[1753954106878,0.002,3867.6,3867.5,11.06834964]
[1753954110109,0.002,3867.6,3867.5,3.26524964]
[1753954110264,0.002,3867.6,3867.5,7.17824964]
[1753954113493,0.002,3867.6,3867.5,3.26524964]
[1753954113691,0.7639,3867.6,3867.5,4.0416]
[1753954118110,0.002,3867.6,3867.5,8.12434964]
[1753954127011,0.002,3867.6,3867.5,0.1296]
[1753954127309,0.002,3867.6,3867.5,4.0436]
[1753954127697,0.7633,3867.6,3867.5,4.0436]
[1753954128288,0.7633,3867.6,3867.5,0.1296]
[1753954128521,0.7633,3867.6,3867.5,4.0436]
[1753954131197,0.7633,3867.6,3867.5,4.5357]
[1753954131932,0.7633,3867.6,3867.5,4.9907]
[1753954134220,0.002,3867.6,3867.5,7.57634964]
[1753954135532,0.002,3867.6,3867.5,7.44674964]
[1753954135780,0.002,3867.6,3867.5,7.57634964]
[1753954139535,0.002,3867.6,3867.5,4.9907]
[1753954142232,0.24344437,3867.6,3867.5,4.5357]
[1753954142643,0.24344437,3867.6,3867.5,7.12134964]
[1753954142945,0.24344437,3867.6,3867.5,7.57634964]
[1753954143261,0.24344437,3867.6,3867.5,4.9907]
[1753954144242,0.24344437,3867.6,3867.5,4.0416]
[1753954144943,0.24344437,3867.6,3867.5,4.5007]
[1753954145130,0.24344437,3867.6,3867.5,4.9485]
[1753954146620,0.002,3867.6,3867.5,4.9485]
[1753954148164,0.24341778,3867.6,3867.5,4.9485]
[1753954148553,0.24341778,3867.6,3867.5,4.0426]
[1753954149130,0.24341778,3867.6,3867.5,4.5017]
[1753954149963,0.24341778,3867.6,3867.5,0.5887]
[1753954150167,0.24341778,3867.6,3867.5,4.0416]
[1753954151538,0.24341778,3867.6,3867.5,4.5007]
[1753954154767,0.002,3867.6,3867.5,4.5007]
[1753954155487,0.002,3867.6,3867.5,4.4997]
[1753954156142,0.002,3867.6,3867.5,4.9475]
[1753954170702,0.24348444,3867.6,3867.5,4.9475]
[1753954173408,0.24353855,3867.6,3867.5,4.9475]
[1753954173813,0.24353855,3867.6,3867.5,4.9646]
[1753954173980,0.24353855,3867.6,3867.5,7.55024964]
[1753954175108,0.24353855,3867.6,3867.5,4.9646]
[1753954179522,0.24353189,3867.6,3867.5,4.9646]
[1753954180529,0.24353189,3867.6,3867.5,7.55024964]
[1753954181222,0.24353189,3867.6,3867.5,4.9646]
[1753954183091,0.24353189,3867.6,3867.5,4.9646]
[1753954183790,0.24353189,3867.6,3867.5,1.0536]
[1753954183991,0.24353189,3867.6,3867.5,4.9586]
[1753954184611,0.24353189,3867.6,3867.5,1.0536]
[1753954184816,0.24353189,3867.6,3867.5,4.9586]
[1753954194650,0.24346813,3867.6,3867.5,4.9586]
[1753954199964,0.24346813,3867.6,3867.5,7.54424964]
[1753954201548,0.24346813,3867.6,3867.5,4.9586]
[1753954202865,0.24346813,3867.6,3867.5,1.0536]
[1753954203164,0.24346813,3867.6,3867.5,4.9556]
[1753954204270,0.24346813,3867.6,3867.5,7.54124964]
[1753954205845,0.24346813,3867.6,3867.5,4.9556]
[1753954206168,0.24346813,3867.6,3867.5,7.54124964]
[1753954206366,0.24346813,3867.6,3867.5,4.9556]
[1753954208377,0.2434133,3867.6,3867.5,4.9556]
[1753954217494,0.2434133,3867.6,3867.5,7.54124964]
[1753954219283,0.2434133,3867.6,3867.5,4.9556]
[1753954220360,0.2434133,3867.6,3867.5,7.54124964]
[1753954220897,0.2434133,3867.6,3867.5,4.9556]
[1753954222815,0.2434133,3867.6,3867.5,7.54124964]
[1753954223489,0.2434133,3867.6,3867.5,4.9556]
[1753954223796,0.2434133,3867.6,3867.5,1.0536]
[1753954223969,0.2434133,3867.6,3867.5,4.9536]
[1753954224611,0.2434133,3867.6,3867.5,0.1296]
[1753954224911,0.2434133,3867.6,3867.5,4.5194]
[1753954226783,0.24348623,3867.6,3867.5,4.5194]
[1753954227383,3.63406902,3867.6,3867.5,0.1296]
[1753954227679,3.39064964,3867.5,3867.4,0.001]
[1753954227993,3.63213587,3867.5,3867.4,0.001]
[1753954228207,3.76273587,3867.5,3867.4,0.001]
[1753954229425,6.76273587,3867.5,3867.4,0.001]
[1753954229733,11.08952703,3867.5,3867.4,0.001]
[1753954230587,11.33045217,3867.5,3867.4,0.001]
[1753954230825,16.15429553,3867.5,3867.4,0.001]
[1753954232215,15.91337039,3867.5,3867.4,0.001]
[1753954232932,16.15401193,3867.5,3867.4,0.001]
[1753954233108,15.91337039,3867.5,3867.4,0.001]
[1753954234116,12.91337039,3867.5,3867.4,0.001]
[1753954234425,16.04028108,3867.5,3867.4,0.001]
[1753954234825,16.28072705,3867.5,3867.4,0.001]
[1753954235120,16.04028108,3867.5,3867.4,0.001]
[1753954238009,13.04028108,3867.5,3867.4,0.001]
[1753954238210,16.04028108,3867.5,3867.4,0.001]
[1753954242834,16.04028108,3867.5,3867.4,1e-08]
[1753954243334,6.3864165,3867.4,3867.3,1e-08]
[1753954243520,7.18329389,3867.4,3867.3,1e-08]
[1753954243729,11.08629389,3867.4,3867.3,1e-08]
[1753954244046,11.18994689,3867.4,3867.3,1e-08]
[1753954244738,11.43003217,3867.4,3867.3,1e-08]
[1753954246155,11.18994689,3867.4,3867.3,1e-08]
[1753954246442,11.43000771,3867.4,3867.3,1e-08]
[1753954248947,7.52700771,3867.4,3867.3,1e-08]
[1753954249258,11.00421655,3867.4,3867.3,1e-08]
[1753954249544,15.82805991,3867.4,3867.3,1e-08]
[1753954249713,16.25385107,3867.4,3867.3,1e-08]
[1753954250138,16.25395447,3867.4,3867.3,1e-08]
[1753954251676,16.60240003,3867.4,3867.3,1e-08]
[1753954253356,16.25395447,3867.4,3867.3,1e-08]
[1753954253724,16.25279245,3867.4,3867.3,1e-08]
[1753954255357,16.25303902,3867.4,3867.3,1e-08]
[1753954256267,11.22026045,3867.1,3867.0,0.001]
[1753954256434,15.60299545,3867.1,3867.0,0.001]
[1753954256754,15.73259545,3867.1,3867.0,1e-08]
[1753954256982,16.17429545,3867.1,3867.0,1e-08]
[1753954258869,16.60008661,3867.1,3867.0,1e-08]
[1753954259063,2.5861846,3866.7,3866.6,0.001]
[1753954259265,12.54446296,3866.7,3866.6,0.001]
[1753954259637,13.11576296,3866.7,3866.6,0.001]
[1753954260867,13.11576296,3866.7,3866.6,0.4417]
[1753954260868,8.2919196,3866.7,3866.6,0.4417]
[1753954261081,8.2919196,3866.7,3866.6,0.9307]
[1753954261767,3.6382196,3866.7,3866.6,0.9307]
[1753954261976,7.5412196,3866.7,3866.6,0.9307]
[1753954262548,7.54208366,3866.7,3866.6,0.9307]
[1753954262764,7.54308366,3866.7,3866.6,0.9307]
[1753954263682,7.6732056,3866.7,3866.6,0.9307]
[1753954268689,7.19160654,3866.7,3866.6,0.9307]
[1753954269493,7.67376715,3866.7,3866.6,0.9307]
[1753954270389,7.67384332,3866.7,3866.6,0.9307]
[1753954270579,7.19160654,3866.7,3866.6,0.9307]
[1753954271296,6.74990654,3866.7,3866.6,0.9307]
[1753954271593,7.23219132,3866.7,3866.6,0.9307]
[1753954271788,7.23219221,3866.7,3866.6,0.9307]
[1753954271954,7.23219221,3866.7,3866.6,0.4417]
[1753954272155,8.06159221,3866.7,3866.6,0.001]
[1753954273181,8.06159221,3866.7,3866.6,0.4562]
[1753954273587,8.06159221,3866.7,3866.6,0.001]
[1753954275573,8.06159221,3866.7,3866.6,0.4562]
[1753954275777,8.06059221,3866.7,3866.6,0.9513]
[1753954276102,7.23119221,3866.7,3866.6,0.9513]
[1753954280509,7.23120516,3866.7,3866.6,0.9513]
[1753954283312,7.231234,3866.7,3866.6,0.9513]
[1753954284013,7.100682,3866.7,3866.6,0.9513]
[1753954284213,7.230282,3866.7,3866.6,0.9513]
[1753954284710,10.231282,3866.7,3866.6,0.9513]
[1753954286217,10.230282,3866.7,3866.6,0.9513]
[1753954286377,6.328282,3866.7,3866.6,0.9513]
[1753954286719,10.230282,3866.7,3866.6,0.9513]
[1753954287428,3.61197546,3866.7,3866.6,0.9513]
[1753954287611,7.51397546,3866.7,3866.6,0.9513]
[1753954287910,0.37079039,3866.7,3866.6,0.9513]
[1753954288075,0.24119039,3866.7,3866.6,1.7318]
[1753954291498,0.24119039,3866.7,3866.6,9.58677125]
[1753954291701,0.24119039,3866.7,3866.6,4.76292789]
[1753954292408,0.24119039,3866.7,3866.6,2.17667641]
[1753954292611,0.24119039,3866.7,3866.6,4.76292789]
[1753954294104,0.24119039,3866.7,3866.6,2.17667641]
[1753954294825,0.24119039,3866.7,3866.6,4.76292789]
[1753954296424,0.002,3866.8,3866.7,2.5861846]
[1753954296628,0.002,3866.8,3866.7,4.16900982]
[1753954296814,0.002,3866.8,3866.7,5.13590982]
[1753954297840,0.24292769,3866.8,3866.7,5.13590982]
[1753954301106,0.002,3866.8,3866.7,5.13590982]
[1753954303124,0.002,3866.8,3866.7,9.03790982]
[1753954308246,0.002,3866.8,3866.7,2.54972522]
[1753954308450,0.002,3866.8,3866.7,5.7808]
[1753954308752,0.002,3866.8,3866.7,8.3669846]
[1753954327174,0.002,3866.8,3866.7,1.8798]
[1753954327376,0.002,3866.8,3866.7,7.8693846]
[1753954327582,0.002,3866.8,3866.7,8.3260846]
[1753954331276,0.002,3866.8,3866.7,9.41752476]
[1753954337368,0.002,3866.8,3866.7,8.3260846]
[1753954345985,0.002,3866.8,3866.7,0.9129]
[1753954346184,0.2435942,3866.8,3866.7,4.0306]
[1753954346385,0.2435942,3866.8,3866.7,0.1296]
[1753954346596,1.5129942,3866.8,3866.6,0.001]
[1753954346881,1.2714,3866.8,3866.7,3.901]
[1753954347211,1.51298291,3866.8,3866.7,3.901]
[1753954348801,1.02398291,3866.8,3866.7,3.901]
[1753954351216,1.51298291,3866.8,3866.7,3.901]
[1753954351799,1.51286177,3866.8,3866.7,3.901]
[1753954352005,1.93570403,3866.8,3866.7,3.901]
[1753954352205,1.51286177,3866.8,3866.7,3.901]
[1753954352401,1.02386177,3866.8,3866.7,3.901]
[1753954353012,1.02386177,3866.8,3866.6,0.001]
[1753954353319,0.002,3866.8,3866.7,4.8453]
[1753954353495,0.24345041,3866.8,3866.7,4.8453]
[1753954354715,0.24345041,3866.8,3866.7,7.4314846]
[1753954355315,0.24345041,3866.8,3866.7,4.8453]
[1753954356177,0.24345041,3866.8,3866.6,0.1306]
[1753954356510,0.002,3866.8,3866.7,3.901]
[1753954356716,0.24345943,3866.8,3866.7,3.901]
[1753954357281,0.24346435,3866.8,3866.7,3.901]
[1753954357683,0.24346508,3866.8,3866.7,3.901]
[1753954358645,2.5861846,3866.7,3866.6,0.001]
[1753954358789,3.58824968,3866.7,3866.6,0.001]
[1753954359288,4.06194968,3866.7,3866.6,0.001]
[1753954360421,4.06182856,3866.7,3866.6,0.001]
[1753954366629,4.1907444,3866.7,3866.6,0.001]
[1753954368094,8.0917444,3866.7,3866.6,0.001]
[1753954368623,4.1907444,3866.7,3866.6,0.001]
[1753954368840,8.0917444,3866.7,3866.6,0.001]
[1753954369951,8.09167927,3866.7,3866.6,0.001]
[1753954372446,4.19067927,3866.7,3866.6,0.001]
[1753954372671,8.09167927,3866.7,3866.6,0.001]
[1753954372969,4.19067927,3866.7,3866.6,0.001]
[1753954373273,7.48865816,3866.7,3866.6,0.001]
[1753954373473,6.72805816,3866.7,3866.6,0.451]
[1753954373623,2.82705816,3866.7,3866.6,0.9453]
[1753954375160,2.82706218,3866.7,3866.6,0.9453]
[1753954375724,2.82709342,3866.7,3866.6,0.9453]
[1753954376877,0.24090882,3866.7,3866.6,0.9453]
[1753954377030,2.82709342,3866.7,3866.6,0.9453]
[1753954379070,0.24090882,3866.7,3866.6,0.9453]
[1753954379442,2.82709342,3866.7,3866.6,0.9453]
[1753954380940,0.24090882,3866.7,3866.6,0.9453]
[1753954381143,2.82709342,3866.7,3866.6,0.9453]
[1753954381757,0.24090882,3866.7,3866.6,0.9453]
[1753954383206,0.002,3866.8,3866.6,0.9453]
[1753954383358,0.002,3866.8,3866.7,0.8986]
[1753954383690,0.2430859,3866.8,3866.7,0.8986]
[1753954389605,0.24323652,3866.8,3866.7,0.8986]
[1753954390204,0.24323652,3866.8,3866.7,3.4847846]
[1753954390572,0.24323652,3866.8,3866.7,4.59922306]
[1753954391360,0.002,3866.8,3866.7,4.59922306]
[1753954391976,0.24323652,3866.8,3866.7,4.59922306]
[1753954392577,0.002,3866.8,3866.7,4.59922306]
[1753954392778,0.002,3866.8,3866.7,8.50022306]
[1753954393302,0.24318943,3866.8,3866.7,8.50022306]
[1753954393694,0.002,3866.8,3866.7,8.50022306]
[1753954399815,0.002,3866.8,3866.7,5.16123846]
[1753954400119,0.002,3866.8,3866.7,4.7996]
[1753954400692,0.002,3866.8,3866.7,7.3857846]
[1753954401583,0.002,3866.8,3866.7,4.7996]
[1753954401817,0.002,3866.8,3866.7,4.3373]
[1753954402206,0.002,3866.8,3866.7,6.4871846]
[1753954402385,0.002,3866.8,3866.7,8.12887306]
[1753954403632,0.002,3866.8,3866.7,8.12887306]
[1753954404427,0.002,3866.8,3866.7,9.01797306]
[1753954408593,0.002,3866.8,3866.7,8.55567306]
[1753954408807,0.002,3866.8,3866.7,9.01797306]
[1753954410412,0.002,3866.8,3866.7,8.11937306]
[1753954410715,0.002,3866.8,3866.7,9.01797306]
[1753954410941,0.002,3866.8,3866.6,0.001]
[1753954411245,0.4573,3866.8,3866.7,3.901]
[1753954411464,0.24321057,3866.8,3866.7,3.901]
[1753954411647,0.69851057,3866.8,3866.7,3.901]
[1753954413647,0.24321057,3866.8,3866.7,3.901]
[1753954414344,0.24321057,3866.8,3866.7,4.7849]
[1753954414515,0.24331976,3866.8,3866.7,4.7849]
[1753954418740,0.24331976,3866.8,3866.7,7.3710846]
[1753954418948,0.24331976,3866.8,3866.7,8.08556582]
[1753954419753,0.24331976,3866.8,3866.7,5.49938122]
[1753954420130,0.24331976,3866.8,3866.7,4.7849]
[1753954421652,0.24331976,3866.8,3866.7,7.3710846]
[1753954424361,0.002,3866.8,3866.7,7.3710846]
[1753954437178,0.002,3866.8,3866.7,7.3700846]
[1753954439480,0.002,3866.8,3866.7,8.1881846]
[1753954439792,0.002,3866.8,3866.7,9.2787939]
[1753954441443,0.002,3866.8,3866.7,1.0906093]
[1753954441647,0.002,3866.8,3866.6,0.1306]
[1753954441843,0.002,3866.8,3866.7,3.9]
[1753954442177,0.24342836,3866.8,3866.7,3.9]
[1753954442547,0.73242836,3866.8,3866.7,3.9]
[1753954442848,0.24342836,3866.8,3866.7,3.9]
[1753954443049,0.002,3866.8,3866.7,5.30419]
[1753954443242,0.24344643,3866.8,3866.7,4.94509]
[1753954443448,0.24344643,3866.8,3866.7,4.4613]
[1753954444065,0.2434441,3866.8,3866.7,4.4613]
[1753954444272,0.002,3866.8,3866.7,7.5361846]
[1753954444852,0.24345399,3866.8,3866.7,7.5361846]
[1753954445072,0.002,3866.8,3866.7,7.5361846]
[1753954445478,0.002,3866.8,3866.7,8.54863443]
[1753954455907,0.002,3866.8,3866.7,4.0296]
[1753954456085,0.24352626,3866.8,3866.7,4.0296]
[1753954456285,1.49662626,3866.8,3866.6,0.001]
[1753954456589,0.71622626,3866.7,3866.6,0.001]
[1753954456784,0.71622626,3866.7,3866.6,3.901]
[1753954457009,0.71621559,3866.7,3866.6,3.901]
[1753954458587,2.82770019,3866.7,3866.6,0.001]
[1753954458948,1.33563609,3866.7,3866.6,3.901]
[1753954459113,3.92182069,3866.7,3866.6,3.901]
[1753954461184,1.33563609,3866.7,3866.6,0.001]
[1753954461384,3.92182069,3866.7,3866.6,0.001]
[1753954461907,3.44712069,3866.7,3866.6,0.001]
[1753954462108,4.05142069,3866.7,3866.6,0.001]
[1753954464212,3.57672069,3866.7,3866.6,0.001]
[1753954468731,0.99053609,3866.7,3866.6,0.001]
[1753954468946,0.37111559,3866.7,3866.6,0.4327]
[1753954469433,0.37111559,3866.7,3866.6,0.9214]
[1753954470108,0.24151559,3866.7,3866.6,0.9214]
[1753954473929,0.24351559,3866.8,3866.6,0.9214]
[1753954474130,0.24351559,3866.8,3866.6,0.001]
[1753954474440,0.002,3866.8,3866.7,0.9391]
[1753954474613,0.24311258,3866.8,3866.7,0.9391]
[1753954478203,0.002,3866.8,3866.7,0.9391]
[1753954478725,0.24311258,3866.8,3866.7,0.9391]
[1753954484949,0.24346489,3866.8,3866.7,0.9391]
[1753954486168,0.24346489,3866.8,3866.6,0.001]
[1753954486369,3.63004949,3866.7,3866.6,0.001]
[1753954486574,4.21994949,3866.7,3866.6,0.001]
[1753954488351,4.20654949,3866.7,3866.6,0.001]
[1753954490297,4.20649431,3866.7,3866.6,0.001]
[1753954491085,9.0271877,3866.7,3866.6,0.001]
[1753954491264,9.38623124,3866.7,3866.6,0.001]
[1753954492306,8.00623785,3866.7,3866.6,0.001]
[1753954493306,7.76482814,3866.7,3866.6,0.001]
[1753954493516,8.0061391,3866.7,3866.6,0.001]
[1753954494391,8.0061391,3866.7,3866.6,0.9401]
[1753954495016,8.0061391,3866.7,3866.6,0.001]
[1753954497007,8.00607657,3866.7,3866.6,0.001]
[1753954497839,8.00607657,3866.7,3866.6,0.4501]
[1753954499737,8.00607657,3866.7,3866.6,0.9401]
[1753954500619,7.76482814,3866.7,3866.6,0.9401]
[1753954500932,8.00606864,3866.7,3866.6,0.9401]
[1753954501729,8.00606864,3866.7,3866.6,0.001]
[1753954502340,8.00606941,3866.7,3866.6,0.001]
[1753954502727,8.00606941,3866.7,3866.6,0.9401]
[1753954502919,8.00606941,3866.7,3866.6,0.4501]
[1753954503839,8.00606941,3866.7,3866.6,0.9071]
[1753954504251,15.8267628,3866.7,3866.6,0.001]
[1753954504441,7.10506941,3866.7,3866.6,0.001]
[1753954504761,11.00706941,3866.7,3866.6,0.001]
[1753954504967,11.48396941,3866.7,3866.6,0.001]
[1753954505331,16.3046628,3866.7,3866.6,0.001]
[1753954505539,15.8277628,3866.7,3866.6,0.001]
[1753954505865,8.00706941,3866.7,3866.6,0.001]
[1753954506165,6.85902587,3866.7,3866.6,0.9126]
[1753954507596,6.85910248,3866.7,3866.6,0.9126]
[1753954508642,6.86010248,3866.7,3866.6,0.9126]
[1753954510569,6.86018741,3866.7,3866.6,0.9126]
[1753954511170,2.95718741,3866.7,3866.6,0.9126]
[1753954511369,6.86018741,3866.7,3866.6,0.9126]
[1753954512498,2.95718741,3866.7,3866.6,0.9126]
[1753954512695,6.85918741,3866.7,3866.6,0.9126]
[1753954513796,6.72958741,3866.7,3866.6,0.9126]
[1753954515511,4.14340281,3866.7,3866.6,0.9126]
[1753954515665,3.902,3866.7,3866.6,0.9126]
[1753954515861,0.24163471,3866.7,3866.6,0.9126]
[1753954516182,3.903,3866.7,3866.6,0.9126]
[1753954516581,4.14467535,3866.7,3866.6,0.9126]
[1753954516780,4.14469031,3866.7,3866.6,0.9126]
[1753954517704,3.903,3866.7,3866.6,0.9126]
[1753954518570,0.002,3866.8,3866.6,0.9126]
[1753954518772,3.903,3866.7,3866.6,0.001]
[1753954519077,4.14475309,3866.7,3866.6,0.001]
[1753954519495,0.24175309,3866.7,3866.6,0.9126]